[Event "1er Tournoi de GM du Barreau de Paris"]
[Site "Paris, France"]
[Date "2019.12.19"]
[Round "6.5"]
[White "MOUHAMAD, Joachim"]
[Black "LAMARD, Guillaume"]
[Result "0-1"]
[TimeControl "1h30+30s\cp"]
[WhiteTitle "FM"]
[BlackTitle "FM"]
[WhiteElo "2293"]
[BlackElo "2452"]

1. d4 {[%clk 01:23:59]} {[%emt 00:07:00]} d5 {[%clk 01:30:57]} {[%emt
00:00:04]} 2. c4 {[%clk 01:24:00]} {[%emt 00:00:28]} e6 {[%clk 01:31:00]}
{[%emt 00:00:27]} 3. Nc3 {[%clk 01:24:13]} {[%emt 00:00:16]} Be7 {[%clk
01:31:22]} {[%emt 00:00:08]} 4. cxd5 {[%clk 01:24:08]} {[%emt 00:00:35]} exd5
{[%clk 01:31:47]} {[%emt 00:00:05]} 5. Bf4 {[%clk 01:24:27]} {[%emt 00:00:10]}
c6 {[%clk 01:32:09]} {[%emt 00:00:09]} 6. e3 {[%clk 01:24:45]} {[%emt
00:00:12]} Bf5 {[%clk 01:32:31]} {[%emt 00:00:09]} 7. Nf3 {[%clk 01:21:18]}
{[%emt 00:03:56]} Nd7 {[%clk 01:29:23]} {[%emt 00:03:38]} 8. Be2 {[%clk
01:20:51]} {[%emt 00:00:57]} Ngf6 {[%clk 01:28:49]} {[%emt 00:01:05]} 9. h3
{[%clk 01:21:07]} {[%emt 00:00:14]} O-O {[%clk 01:27:44]} {[%emt 00:01:35]} 10.
O-O {[%clk 01:21:30]} {[%emt 00:00:07]} Ne4 {[%clk 01:27:05]} {[%emt 00:01:09]}
11. Nxe4 {[%clk 01:21:17]} {[%emt 00:00:43]} dxe4 {[%clk 01:16:42]} {[%emt
00:10:54]} 12. Nd2 {[%clk 01:20:38]} {[%emt 00:01:08]} Nf6 {[%clk 01:16:45]}
{[%emt 00:00:28]} 13. Rc1 {[%clk 01:20:21]} {[%emt 00:00:47]} Bg6 {[%clk
01:00:44]} {[%emt 00:16:32]} 14. Bh2 {[%clk 01:17:39]} {[%emt 00:03:11]} Nd5
{[%clk 01:00:37]} {[%emt 00:00:37]} 15. Nb3 {[%clk 01:12:48]} {[%emt 00:05:20]}
Rc8 {[%clk 00:54:06]} {[%emt 00:07:01]} 16. Nc5 {[%clk 01:11:27]} {[%emt
00:01:51]} b6 {[%clk 00:54:20]} {[%emt 00:00:16]} 17. Na4 {[%clk 01:10:59]}
{[%emt 00:00:57]} Nb4 {[%clk 00:47:03]} {[%emt 00:07:48]} 18. Qb3 {[%clk
01:04:19]} {[%emt 00:07:10]} Nd3 {[%clk 00:37:58]} {[%emt 00:09:35]} 19. Rcd1
{[%clk 00:20:21]} {[%emt 00:44:27]} c5 {[%clk 00:28:54]} {[%emt 00:09:34]} 20.
dxc5 {[%clk 00:20:28]} {[%emt 00:00:22]} Bxc5 {[%clk 00:28:13]} {[%emt
00:01:11]} 21. Nc3 {[%clk 00:17:36]} {[%emt 00:03:22]} Qg5 {[%clk 00:27:16]}
{[%emt 00:01:27]} 22. Bxd3 {[%clk 00:15:59]} {[%emt 00:02:06]} exd3 {[%clk
00:27:25]} {[%emt 00:00:21]} 23. Rd2 {[%clk 00:05:09]} {[%emt 00:11:20]} Rfe8
{[%clk 00:25:49]} {[%emt 00:02:06]} 24. Bf4 {[%clk 00:03:04]} {[%emt 00:02:35]}
Qe7 {[%clk 00:21:49]} {[%emt 00:04:31]} 25. Re1 {[%clk 00:02:53]} {[%emt
00:00:41]} Qb7 {[%clk 00:19:34]} {[%emt 00:02:45]} 26. a3 {[%clk 00:02:36]}
{[%emt 00:00:48]} h6 {[%clk 00:17:39]} {[%emt 00:02:25]} 27. Kh2 {[%clk
00:03:01]} {[%emt 00:00:05]} Qc6 {[%clk 00:17:21]} {[%emt 00:00:48]} 28. f3
{[%clk 00:01:46]} {[%emt 00:01:44]} Bd6 {[%clk 00:10:04]} {[%emt 00:07:47]} 29.
Bxd6 {[%clk 00:01:30]} {[%emt 00:00:46]} Qxd6+ {[%clk 00:10:30]} {[%emt
00:00:04]} 30. g3 {[%clk 00:01:04]} {[%emt 00:00:57]} Kh7 {[%clk 00:07:45]}
{[%emt 00:03:15]} 31. Qb4 {[%clk 00:01:01]} {[%emt 00:00:32]} Qc6 {[%clk
00:07:06]} {[%emt 00:01:09]} 32. Qf4 {[%clk 00:00:56]} {[%emt 00:00:35]} Rcd8
{[%clk 00:05:59]} {[%emt 00:01:38]} 33. Kg2 {[%clk 00:01:11]} {[%emt 00:00:14]}
Re6 {[%clk 00:06:04]} {[%emt 00:00:25]} 34. e4 {[%clk 00:01:35]} {[%emt
00:00:06]} Qc4 {[%clk 00:05:53]} {[%emt 00:00:40]} 35. g4 {[%clk 00:01:48]}
{[%emt 00:00:17]} f6 {[%clk 00:05:19]} {[%emt 00:01:05]} 36. Re3 {[%clk
00:02:02]} {[%emt 00:00:16]} Rc6 {[%clk 00:05:12]} {[%emt 00:00:36]} 37. Qg3
{[%clk 00:01:56]} {[%emt 00:00:36]} Rd4 {[%clk 00:05:13]} {[%emt 00:00:30]} 38.
Qe1 {[%clk 00:02:10]} {[%emt 00:00:16]} Rcd6 {[%clk 00:05:13]} {[%emt
00:00:31]} 39. Qd1 {[%clk 00:02:00]} {[%emt 00:00:40]} b5 {[%clk 00:04:15]}
{[%emt 00:01:28]} 40. Qe1 {[%clk 00:01:09]} {[%emt 00:01:21]} Qb3 {[%clk
00:04:04]} {[%emt 00:00:41]} 41. Qf1 {[%clk 00:01:11]} {[%emt 00:00:27]} Bf7
{[%clk 00:04:04]} {[%emt 00:00:30]} 42. Nd1 {[%clk 00:00:47]} {[%emt 00:00:53]}
b4 {[%clk 00:03:30]} {[%emt 00:01:05]} 43. axb4 {[%clk 00:01:01]} {[%emt
00:00:17]} Qxb4 {[%clk 00:03:55]} {[%emt 00:00:05]} 44. Qe1 {[%clk 00:00:54]}
{[%emt 00:00:37]} Rc6 {[%clk 00:03:25]} {[%emt 00:01:00]} 45. Nc3 {[%clk
00:00:43]} {[%emt 00:00:41]} a5 {[%clk 00:02:53]} {[%emt 00:01:02]} 46. Qf2
{[%clk 00:00:45]} {[%emt 00:00:27]} Rxc3 {[%clk 00:02:41]} {[%emt 00:00:43]} 47.
bxc3 {[%clk 00:01:09]} {[%emt 00:00:05]} Qxc3 {[%clk 00:03:08]} {[%emt
00:00:03]} 48. Re1 {[%clk 00:00:34]} {[%emt 00:01:05]} a4 {[%clk 00:03:09]}
{[%emt 00:00:29]} 49. Red1 {[%clk 00:00:31]} {[%emt 00:00:33]} a3 {[%clk
00:03:10]} {[%emt 00:00:29]} 50. Qe1 {[%clk 00:00:33]} {[%emt 00:00:28]} a2
{[%clk 00:02:35]} {[%emt 00:01:05]} 51. Kf2 {[%clk 00:00:44]} {[%emt 00:00:19]}
Bb3 {[%clk 00:02:21]} {[%emt 00:00:44]} 52. Ra1 {[%clk 00:00:46]} {[%emt
00:00:27]} Ra4 {[%clk 00:02:17]} {[%emt 00:00:35]} 53. Kg2 {[%clk 00:00:50]}
{[%emt 00:00:25]} Bc2 {[%clk 00:02:21]} {[%emt 00:00:27]} 54. Qc1 {[%clk
00:00:56]} {[%emt 00:00:24]} Qe5 {[%clk 00:01:48]} {[%emt 00:01:03]} 55. Rf2
{[%clk 00:01:02]} {[%emt 00:00:24]} Ra7 {[%clk 00:01:37]} {[%emt 00:00:41]} 56.
Rf1 {[%clk 00:01:05]} {[%emt 00:00:27]} Qc3 {[%clk 00:01:35]} {[%emt 00:00:32]}
57. Rd1 {[%clk 00:00:53]} {[%emt 00:00:42]} Ra3 {[%clk 00:01:34]} {[%emt
00:00:32]} 58. Rd2 {[%clk 00:01:07]} {[%emt 00:00:16]} Ra5 {[%clk 00:01:48]}
{[%emt 00:00:16]} 59. Rf2 {[%clk 00:01:24]} {[%emt 00:00:13]} Qe5 {[%clk
00:01:53]} {[%emt 00:00:26]} 60. Rd2 {[%clk 00:01:29]} {[%emt 00:00:25]} Ra8
{[%clk 00:01:50]} {[%emt 00:00:33]} 61. Rf2 {[%clk 00:01:43]} {[%emt 00:00:15]}
Ra4 {[%clk 00:01:35]} {[%emt 00:00:45]} 62. Rd2 {[%clk 00:02:03]} {[%emt
00:00:10]} Qc3 {[%clk 00:01:45]} {[%emt 00:00:20]} 63. Rf2 {[%clk 00:02:14]}
{[%emt 00:00:19]} Kh8 {[%clk 00:02:12]} 64. Rd2 {[%clk 00:01:57]} {[%emt
00:00:51]} Ra8 {[%clk 00:02:35]} 65. Rf2 {[%clk 00:02:17]} {[%emt 00:00:17]}
Ra5 {[%clk 00:01:07]} 66. Rd2 {[%clk 00:02:38]} {[%emt 00:02:07]} h5 {[%clk
00:01:33]} 67. Kg3 {[%clk 00:02:38]} Kh7 {[%clk 00:01:33]} 68. Rf2 {[%clk
00:02:38]} Qe5+ {[%clk 00:02:18]} {[%emt 00:03:10]} 69. Kg2 {[%clk 00:00:46]}
{[%emt 00:00:30]} h4 {[%clk 00:02:29]} {[%emt 00:00:20]} 70. Qe1 {[%clk
00:00:37]} {[%emt 00:00:39]} Qg3+ {[%clk 00:02:13]} {[%emt 00:00:47]} 71. Kh1
{[%clk 00:00:44]} {[%emt 00:00:22]} Rb5 {[%clk 00:02:14]} {[%emt 00:00:29]} 0-1



[ePGN "0.1;DGT LiveChess/2.2.5"]

[Event "1er Tournoi de GM du Barreau de Paris"]
[Site "Paris, France"]
[Date "2019.12.19"]
[Round "7.1"]
[White "GULIYEV, Namig"]
[Black "FEDORCHUK, Sergey"]
[Result "1/2-1/2"]
[TimeControl "1h30+30s\cp"]
[WhiteTitle "GM"]
[BlackTitle "GM"]
[WhiteElo "2548"]
[BlackElo "2636"]

1. e4 {[%clk 01:30:59]} {[%emt 00:00:01]} e5 {[%clk 01:30:53]} {[%emt
00:00:07]} 2. Nf3 {[%clk 01:31:26]} {[%emt 00:00:03]} Nc6 {[%clk 01:31:14]}
{[%emt 00:00:09]} 3. Bb5 {[%clk 01:31:54]} {[%emt 00:00:03]} Nf6 {[%clk
01:31:32]} {[%emt 00:00:11]} 4. O-O {[%clk 01:32:21]} {[%emt 00:00:04]} Nxe4
{[%clk 01:31:49]} {[%emt 00:00:13]} 5. Re1 {[%clk 01:32:49]} {[%emt 00:00:02]}
Nd6 {[%clk 01:32:06]} {[%emt 00:00:13]} 6. Nxe5 {[%clk 01:33:11]} {[%emt
00:00:08]} Be7 {[%clk 01:32:24]} {[%emt 00:00:11]} 7. Bf1 {[%clk 01:33:35]}
{[%emt 00:00:06]} Nxe5 {[%clk 01:32:33]} {[%emt 00:00:20]} 8. Rxe5 {[%clk
01:34:00]} {[%emt 00:00:06]} O-O {[%clk 01:32:50]} {[%emt 00:00:13]} 9. d4
{[%clk 01:34:27]} {[%emt 00:00:03]} Bf6 {[%clk 01:33:01]} {[%emt 00:00:19]} 10.
Re1 {[%clk 01:34:52]} {[%emt 00:00:05]} Re8 {[%clk 01:33:17]} {[%emt 00:00:13]}
11. Rxe8+ {[%clk 01:35:14]} {[%emt 00:00:08]} Nxe8 {[%clk 01:33:31]} {[%emt
00:00:16]} 12. c3 {[%clk 01:35:41]} {[%emt 00:00:04]} d5 {[%clk 01:33:33]}
{[%emt 00:00:27]} 13. Bd3 {[%clk 01:35:56]} {[%emt 00:00:15]} g6 {[%clk
01:33:32]} {[%emt 00:00:32]} 14. Bf4 {[%clk 01:36:21]} {[%emt 00:00:04]} Ng7
{[%clk 01:33:39]} {[%emt 00:00:22]} 15. Nd2 {[%clk 01:36:46]} {[%emt 00:00:06]}
c6 {[%clk 01:33:54]} {[%emt 00:00:14]} 16. h3 {[%clk 01:37:07]} {[%emt
00:00:09]} Bf5 {[%clk 01:34:02]} {[%emt 00:00:22]} 17. Bxf5 {[%clk 01:37:33]}
{[%emt 00:00:05]} 1/2-1/2

[Event "1er Tournoi de GM du Barreau de Paris"]
[Site "Paris, France"]
[Date "2019.12.19"]
[Round "7.2"]
[White "LOISEAU, Quentin"]
[Black "DAVID, Alberto"]
[Result "0-1"]
[TimeControl "1h30+30s\cp"]
[WhiteTitle "IM"]
[BlackTitle "GM"]
[WhiteElo "2470"]
[BlackElo "2545"]

1. e4 {[%clk 01:30:56]} {[%emt 00:00:03]} e6 {[%clk 01:30:07]} {[%emt
00:00:54]} 2. d4 {[%clk 01:31:16]} {[%emt 00:00:09]} d5 {[%clk 01:30:33]}
{[%emt 00:00:05]} 3. Nc3 {[%clk 01:31:41]} {[%emt 00:00:05]} Nf6 {[%clk
01:30:10]} {[%emt 00:00:53]} 4. Bg5 {[%emt 00:00:20]} Bb4 {[%clk 01:30:16]}
{[%emt 00:00:13]} 5. e5 {[%clk 01:32:19]} {[%emt 00:00:13]} h6 {[%clk
01:30:27]} {[%emt 00:00:19]} 6. Bh4 {[%clk 01:32:03]} {[%emt 00:00:46]} g5
{[%clk 01:29:12]} {[%emt 00:01:45]} 7. Bg3 {[%clk 01:32:31]} {[%emt 00:00:02]}
Ne4 {[%clk 01:28:47]} {[%emt 00:00:54]} 8. Nge2 {[%clk 01:32:32]} {[%emt
00:00:28]} c5 {[%clk 01:11:23]} {[%emt 00:17:54]} 9. a3 {[%clk 01:23:31]}
{[%emt 00:09:32]} Bxc3+ {[%clk 01:10:40]} {[%emt 00:01:13]} 10. Nxc3 {[%clk
01:19:46]} {[%emt 00:04:15]} Qa5 {[%clk 01:07:00]} {[%emt 00:04:11]} 11. b4
{[%clk 01:17:57]} {[%emt 00:02:19]} Nxc3 {[%clk 00:56:42]} {[%emt 00:10:47]} 12.
bxa5 {[%clk 01:18:18]} {[%emt 00:00:08]} Nxd1 {[%clk 00:57:08]} {[%emt
00:00:05]} 13. Rxd1 {[%clk 01:16:35]} {[%emt 00:02:14]} cxd4 {[%clk 00:49:20]}
{[%emt 00:08:21]} 14. h4 {[%clk 01:16:35]} {[%emt 00:00:29]} Rf8 {[%clk
00:32:51]} {[%emt 00:16:59]} 15. hxg5 {[%clk 01:16:06]} {[%emt 00:00:59]} hxg5
{[%clk 00:33:16]} {[%emt 00:00:04]} 16. Rh5 {[%clk 01:14:00]} {[%emt 00:02:36]}
Nc6 {[%clk 00:31:06]} {[%emt 00:02:40]} 17. Rxg5 {[%clk 01:13:16]} {[%emt
00:01:14]} Bd7 {[%clk 00:29:10]} {[%emt 00:02:27]} 18. Rh5 {[%clk 01:08:47]}
{[%emt 00:04:58]} Rc8 {[%clk 00:21:54]} {[%emt 00:07:47]} 19. a6 {[%clk
01:05:08]} {[%emt 00:04:10]} b6 {[%clk 00:22:19]} {[%emt 00:00:05]} 20. Bh4
{[%clk 00:59:27]} {[%emt 00:06:11]} Na5 {[%clk 00:21:21]} {[%emt 00:01:27]} 21.
Rxd4 {[%clk 00:55:22]} {[%emt 00:04:34]} Rxc2 {[%clk 00:21:08]} {[%emt
00:00:44]} 22. Bd3 {[%clk 00:53:58]} {[%emt 00:01:54]} Rc1+ {[%clk 00:20:19]}
{[%emt 00:01:19]} 23. Ke2 {[%clk 00:53:54]} {[%emt 00:00:35]} Nb3 {[%clk
00:20:24]} {[%emt 00:00:25]} 24. Rb4 {[%clk 00:39:43]} {[%emt 00:14:41]} Nc5
{[%clk 00:19:48]} {[%emt 00:01:05]} 25. Bf6 {[%clk 00:27:11]} {[%emt 00:13:02]}
Rc3 {[%clk 00:17:27]} {[%emt 00:02:51]} 26. Bb1 {[%clk 00:17:31]} {[%emt
00:10:10]} Bc8 {[%clk 00:15:01]} {[%emt 00:02:56]} 27. Kd2 {[%clk 00:15:05]}
{[%emt 00:02:56]} Rxa3 {[%clk 00:15:12]} {[%emt 00:00:19]} 28. Rbh4 {[%clk
00:11:12]} {[%emt 00:04:22]} Bxa6 {[%clk 00:14:19]} {[%emt 00:01:23]} 29. Rh8
{[%clk 00:11:05]} {[%emt 00:00:36]} Rxh8 {[%clk 00:14:15]} {[%emt 00:00:35]} 30.
Rxh8+ {[%clk 00:11:33]} {[%emt 00:00:02]} Kd7 {[%clk 00:14:41]} {[%emt
00:00:04]} 31. Rf8 {[%clk 00:11:28]} {[%emt 00:00:35]} Ra1 {[%clk 00:10:45]}
{[%emt 00:04:27]} 32. Rxf7+ {[%clk 00:11:19]} {[%emt 00:00:38]} Kc6 {[%clk
00:11:10]} {[%emt 00:00:05]} 33. Bg6 {[%clk 00:10:27]} {[%emt 00:01:22]} d4
{[%clk 00:09:40]} {[%emt 00:02:01]} 34. Rxa7 {[%clk 00:06:51]} {[%emt
00:04:06]} Ra2+ {[%clk 00:10:03]} {[%emt 00:00:06]} 35. Kc1 {[%clk 00:06:51]}
{[%emt 00:00:30]} Rxf2 {[%clk 00:09:16]} {[%emt 00:01:17]} 36. Be7 {[%clk
00:05:57]} {[%emt 00:01:25]} Bc4 {[%clk 00:05:49]} {[%emt 00:03:57]} 37. Bxc5
{[%clk 00:00:42]} {[%emt 00:05:45]} bxc5 {[%clk 00:05:43]} {[%emt 00:00:36]} 38.
g4 {[%clk 00:00:46]} {[%emt 00:00:25]} Bd5 {[%clk 00:04:26]} {[%emt 00:01:47]}
39. g5 {[%clk 00:00:47]} {[%emt 00:00:29]} Kb6 {[%clk 00:04:16]} {[%emt
00:00:41]} 40. Rd7 {[%clk 00:00:44]} {[%emt 00:00:34]} c4 {[%clk 00:02:49]}
{[%emt 00:01:57]} 41. Bf7 {[%clk 00:00:39]} {[%emt 00:00:34]} c3 {[%clk
00:02:23]} {[%emt 00:00:56]} 42. Bxe6 {[%clk 00:00:32]} {[%emt 00:00:37]} Bxe6
{[%clk 00:02:03]} {[%emt 00:00:50]} 43. Rd6+ {[%clk 00:01:01]} Kc5 {[%clk
00:02:08]} {[%emt 00:00:25]} 44. Rxe6 {[%clk 00:01:26]} {[%emt 00:00:05]} d3
{[%clk 00:02:30]} {[%emt 00:00:08]} 45. Rf6 {[%clk 00:01:52]} {[%emt 00:00:04]}
Ra2 {[%clk 00:02:46]} {[%emt 00:00:14]} 0-1

[Event "1er Tournoi de GM du Barreau de Paris"]
[Site "Paris, France"]
[Date "2019.12.19"]
[Round "7.3"]
[White "LAMARD, Guillaume"]
[Black "MAURIZZI, Marc Andria"]
[Result "1/2-1/2"]
[TimeControl "1h30+30s\cp"]
[WhiteTitle "FM"]
[BlackTitle "IM"]
[WhiteElo "2452"]
[BlackElo "2404"]

1. Nf3 {[%clk 01:30:57]} {[%emt 00:00:02]} Nf6 {[%clk 01:30:54]} {[%emt
00:00:07]} 2. c4 {[%clk 01:31:24]} {[%emt 00:00:03]} b6 {[%clk 01:31:05]}
{[%emt 00:00:19]} 3. g3 {[%clk 01:31:46]} {[%emt 00:00:07]} Bb7 {[%clk
01:31:23]} {[%emt 00:00:12]} 4. Bg2 {[%clk 01:32:12]} {[%emt 00:00:04]} g6
{[%clk 01:31:45]} {[%emt 00:00:08]} 5. b3 {[%clk 01:32:39]} {[%emt 00:00:03]}
Bg7 {[%clk 01:32:09]} {[%emt 00:00:06]} 6. Bb2 {[%clk 01:33:06]} {[%emt
00:00:02]} c5 {[%clk 01:32:17]} {[%emt 00:00:22]} 7. O-O {[%clk 01:33:31]}
{[%emt 00:00:05]} O-O {[%clk 01:32:44]} {[%emt 00:00:03]} 8. d4 {[%clk
01:33:56]} {[%emt 00:00:05]} cxd4 {[%clk 01:33:07]} {[%emt 00:00:07]} 9. Qxd4
{[%clk 01:34:20]} {[%emt 00:00:06]} Nc6 {[%clk 01:33:18]} {[%emt 00:00:20]} 10.
Qc3 {[%clk 01:34:37]} {[%emt 00:00:13]} Qc7 {[%clk 01:32:45]} {[%emt 00:01:02]}
11. Rd1 {[%clk 01:34:25]} {[%emt 00:00:41]} Rad8 {[%clk 01:33:00]} {[%emt
00:00:16]} 12. Qe1 {[%clk 01:30:24]} {[%emt 00:04:32]} d5 {[%clk 01:31:41]}
{[%emt 00:01:48]} 13. cxd5 {[%clk 01:27:45]} {[%emt 00:03:09]} Rxd5 {[%clk
01:31:38]} {[%emt 00:00:34]} 14. Rxd5 {[%clk 01:24:37]} {[%emt 00:03:38]} Nxd5
{[%clk 01:32:06]} {[%emt 00:00:02]} 15. Bxg7 {[%clk 01:24:58]} {[%emt
00:00:09]} Kxg7 {[%clk 01:32:33]} {[%emt 00:00:03]} 16. Nc3 {[%clk 01:25:07]}
{[%emt 00:00:21]} Nf6 {[%clk 01:29:53]} {[%emt 00:03:09]} 17. Rc1 {[%clk
01:22:03]} {[%emt 00:03:36]} Rc8 {[%clk 01:26:09]} {[%emt 00:04:13]} 18. Nb5
{[%clk 01:21:21]} {[%emt 00:01:13]} Qb8 {[%clk 01:26:09]} {[%emt 00:00:30]} 19.
Qd2 {[%clk 01:16:04]} {[%emt 00:05:46]} a6 {[%clk 01:05:55]} {[%emt 00:20:44]}
20. Na3 {[%clk 01:16:00]} {[%emt 00:00:35]} Rd8 {[%clk 01:03:36]} {[%emt
00:02:49]} 21. Qb2 {[%clk 01:14:40]} {[%emt 00:01:49]} b5 {[%clk 00:57:19]}
{[%emt 00:06:48]} 22. Nc2 {[%clk 01:15:05]} {[%emt 00:00:06]} Qd6 {[%clk
00:50:46]} {[%emt 00:07:02]} 23. Nce1 {[%clk 01:13:00]} {[%emt 00:02:36]} a5
{[%clk 00:44:30]} {[%emt 00:06:46]} 24. Nd3 {[%clk 01:10:10]} {[%emt 00:03:20]}
Nb4 {[%clk 00:43:37]} {[%emt 00:01:23]} 25. Nde5 {[%clk 00:59:03]} {[%emt
00:11:37]} h6 {[%clk 00:32:37]} {[%emt 00:11:30]} 26. Nxf7 {[%clk 00:52:10]}
{[%emt 00:07:23]} Kxf7 {[%clk 00:32:20]} {[%emt 00:00:47]} 27. Ne5+ {[%clk
00:52:36]} {[%emt 00:00:04]} Kg7 {[%clk 00:30:50]} {[%emt 00:01:59]} 28. Bxb7
{[%clk 00:53:01]} {[%emt 00:00:06]} Nxa2 {[%clk 00:29:03]} {[%emt 00:02:17]} 29.
Qxa2 {[%clk 00:51:55]} {[%emt 00:01:36]} Qxe5 {[%clk 00:29:28]} {[%emt
00:00:05]} 30. Qxa5 {[%clk 00:51:42]} {[%emt 00:00:43]} Rd4 {[%clk 00:28:04]}
{[%emt 00:01:54]} 31. Bf3 {[%clk 00:49:27]} {[%emt 00:02:45]} g5 {[%clk
00:27:41]} {[%emt 00:00:53]} 32. e3 {[%clk 00:46:54]} {[%emt 00:03:03]} Rd3
{[%clk 00:27:57]} {[%emt 00:00:14]} 33. Qb4 {[%clk 00:33:15]} {[%emt 00:14:09]}
Rxe3 {[%clk 00:23:43]} {[%emt 00:04:44]} 34. fxe3 {[%clk 00:31:17]} {[%emt
00:02:29]} Qxe3+ {[%clk 00:24:07]} {[%emt 00:00:06]} 35. Kg2 {[%clk 00:31:45]}
{[%emt 00:00:02]} Qxc1 {[%clk 00:24:31]} {[%emt 00:00:06]} 36. Qxe7+ {[%clk
00:32:12]} {[%emt 00:00:03]} Kg6 {[%clk 00:24:54]} {[%emt 00:00:06]} 37. Be4+
{[%clk 00:32:12]} {[%emt 00:00:30]} Nxe4 {[%clk 00:25:22]} {[%emt 00:00:02]} 38.
Qxe4+ {[%clk 00:32:37]} {[%emt 00:00:05]} Kg7 {[%clk 00:22:22]} {[%emt
00:03:29]} 39. Qe5+ {[%clk 00:33:03]} {[%emt 00:00:05]} Kg6 {[%clk 00:22:21]}
{[%emt 00:00:31]} 40. Qxb5 {[%clk 00:33:20]} {[%emt 00:00:13]} Qc2+ {[%clk
00:22:30]} {[%emt 00:00:20]} 41. Kg1 {[%clk 00:33:47]} {[%emt 00:00:04]} Qc1+
{[%clk 00:22:09]} {[%emt 00:00:50]} 42. Kg2 {[%clk 00:33:44]} {[%emt 00:00:34]}
Qc2+ {[%clk 00:22:35]} {[%emt 00:00:05]} 43. Kh3 {[%clk 00:33:51]} {[%emt
00:00:22]} Qc8+ {[%clk 00:22:39]} {[%emt 00:00:24]} 1/2-1/2